bitfinex-derivatives/quotes_ETHF0:USTF0_20250807
["timestamp","ask_amount","ask_price","bid_price","bid_amount"]
[1754564676840,4.6075,3818.6,3818.5,5.0967]
[1754564677036,22.9965,3818.6,3818.5,5.0967]
[1754564677243,18.389,3818.7,3818.6,0.52365]
[1754564677448,21.8614,3818.7,3818.6,4.194]
[1754564677948,22.3511,3818.7,3818.6,4.194]
[1754564678850,3.9621,3818.7,3818.6,4.194]
[1754564679052,22.3511,3818.7,3818.6,4.194]
[1754564682352,21.8614,3818.7,3818.6,5.0967]
[1754564682743,21.2051,3818.7,3818.6,5.0967]
[1754564682943,20.4215,3818.7,3818.6,5.0967]
[1754564684154,19.7837,3818.7,3818.6,5.0967]
[1754564684549,22.3461,3818.7,3818.6,4.194]
[1754564684856,0.52365,3818.6,3818.4,0.52368]
[1754564685052,3.9621,3818.5,3818.4,3.24708]
[1754564685253,3.9621,3818.5,3818.4,4.71768]
[1754564685448,1.2079,3818.7,3818.6,4.194]
[1754564685648,18.9346,3818.7,3818.6,5.0967]
[1754564685952,19.7827,3818.7,3818.6,5.0967]
[1754564686149,19.7817,3818.7,3818.6,5.0967]
[1754564686349,21.0708,3818.7,3818.6,5.0967]
[1754564686549,22.3441,3818.7,3818.6,4.194]
[1754564686954,1.3997,3818.4,3818.3,4.71769]
[1754564687156,1.3997,3817.9,3817.8,7.4018]
[1754564687350,2.6888,3817.9,3817.8,5.62046]
[1754564687547,1.8407,3817.9,3817.8,5.62046]
[1754564687748,0.5516,3817.9,3817.8,5.62046]
[1754564687951,2.6243,3817.9,3817.8,5.62046]
[1754564688150,0.5516,3817.9,3817.8,5.62046]
[1754564688351,2.6243,3818.1,3818.0,2.58543]
[1754564688549,3.114,3818.1,3818.0,2.58543]
[1754564688757,3.114,3818.1,3818.0,5.62043]
[1754564688950,1.1844,3818.1,3818.0,5.62043]
[1754564689148,0.52372,3818.2,3818.0,5.62043]
[1754564689354,1.07532,3818.2,3818.1,5.0967]
[1754564689751,22.86482,3818.2,3818.1,5.0967]
[1754564690555,22.37512,3818.2,3818.1,5.0967]
[1754564691554,21.52702,3818.2,3818.1,5.0967]
[1754564691956,22.86482,3818.2,3818.1,5.0967]
[1754564692152,2.49175,3818.0,3817.9,2.0617]
[1754564692457,4.48585,3818.0,3817.8,3.73155]
[1754564692656,3.9621,3817.9,3817.8,7.60155]
[1754564692849,3.9621,3817.9,3817.8,6.69885]
[1754564693160,3.9621,3817.9,3817.8,7.92555]
[1754564693355,3.9621,3817.9,3817.8,8.82825]
[1754564693656,21.0023,3817.9,3817.8,8.82825]
[1754564693852,18.378,3817.9,3817.8,8.82825]
[1754564694356,3.148,3818.3,3818.2,5.62041]
[1754564694558,18.376,3818.3,3818.2,2.58541]
[1754564694754,21.1921,3818.3,3818.2,2.58541]
[1754564695057,21.1921,3818.3,3818.2,4.1911]
[1754564695058,22.3381,3818.3,3818.2,4.1911]
[1754564695451,18.9276,3818.3,3818.2,8.3045]
[1754564695856,18.376,3818.3,3818.2,8.3045]
[1754564696054,0.5516,3818.6,3818.5,5.62036]
[1754564696258,2.49169,3818.3,3818.2,2.0617]
[1754564696656,2.49169,3818.3,3818.2,3.2884]
[1754564696962,2.49169,3818.3,3818.2,5.0967]
[1754564696963,4.48579,3818.3,3818.2,5.0967]
[1754564697456,3.9621,3818.3,3818.2,5.0967]
[1754564699259,0.70447109,3818.5,3818.4,2.0428]
[1754564699555,22.3004,3818.5,3818.3,0.52369]
[1754564699759,1.3717,3818.1,3818.0,3.18943]
[1754564700056,3.9274,3818.1,3818.0,4.64353]
[1754564700259,3.9274,3818.1,3818.0,2.6657]
[1754564700458,22.3004,3818.1,3818.0,2.0552]
[1754564700656,22.3004,3818.1,3818.0,3.2359]
[1754564700959,7.1352,3818.6,3818.5,5.0295]
[1754564701152,26.21186532,3818.6,3818.5,5.0295]
[1754564701355,26.21186532,3818.6,3818.5,4.1198]
[1754564701557,3.3375,3818.4,3818.3,1.38578]
[1754564701762,0.5899,3818.4,3818.3,5.55318]
[1754564702358,3.9274,3818.4,3818.3,5.55318]
[1754564702861,2.589,3818.4,3818.3,5.55318]
[1754564703656,0.5899,3818.6,3818.5,5.0295]
[1754564703857,18.9619,3818.6,3818.5,5.0295]
[1754564704262,19.5893,3818.6,3818.5,5.0295]
[1754564704561,19.5883,3818.6,3818.5,5.0295]
[1754564704866,19.5873,3818.6,3818.5,5.0295]
[1754564705452,1.8671,3818.6,3818.5,5.0295]
[1754564705652,20.959,3818.6,3818.5,5.0295]
[1754564706057,25.5052,3818.6,3818.5,3.2359]
[1754564706458,25.5042,3818.6,3818.5,2.0552]
[1754564706856,3.0402,3818.4,3818.3,4.66928]
[1754564707059,3.9274,3818.4,3818.3,5.0295]
[1754564707254,3.9274,3818.0,3817.9,4.4593]
[1754564707459,3.9274,3817.7,3817.6,4.1198]
[1754564707657,3.9274,3817.7,3817.6,5.0295]
[1754564707852,2.6301,3817.7,3817.6,5.0295]
[1754564708457,1.82922,3817.4,3817.3,1.4323]
[1754564708658,1.9739,3817.4,3817.3,5.0295]
[1754564708862,0.5899,3817.4,3817.3,5.0295]
[1754564710265,1.8671,3817.4,3817.3,5.0295]
[1754564710457,1.9328,3817.4,3817.3,5.0295]
[1754564711166,1.8671,3817.4,3817.3,5.0295]
[1754564711464,1.2397,3817.4,3817.3,5.0295]
[1754564711865,1.2397,3817.4,3817.1,0.52385]
[1754564712168,1.82926,3817.1,3817.0,3.47636]
[1754564712364,2.49776,3817.1,3817.0,3.47636]
[1754564712564,3.33766,3817.1,3817.0,5.0295]
[1754564712760,3.2078,3817.8,3817.0,5.0295]
[1754564712761,19.47971,3817.5,3817.4,5.0295]
[1754564712961,19.5833,3817.5,3817.4,5.0295]
[1754564713563,0.5899,3817.5,3817.4,5.0295]
[1754564713767,5.07807,3817.8,3817.7,2.0428]
[1754564713968,22.9203,3817.8,3817.7,5.55327]
[1754564714172,21.5738,3817.8,3817.7,5.55327]
[1754564714376,22.1637,3817.8,3817.7,5.55327]
[1754564716268,2.8138,3817.2,3817.1,4.1198]
[1754564717769,18.88882,3817.4,3817.1,5.0295]
[1754564717960,19.47872,3817.4,3817.3,2.0428]
[1754564718161,20.82162,3817.4,3817.3,5.0295]
[1754564718367,20.86272,3817.4,3817.3,5.0295]
[1754564719071,21.70262,3817.4,3817.3,5.0295]
[1754564719275,20.86272,3817.4,3817.3,5.0295]
[1754564720377,24.91042,3817.4,3817.3,5.0295]
[1754564720576,24.91042,3817.4,3817.3,4.1198]
[1754564721771,3.33766,3817.1,3817.0,4.1198]
[1754564721977,21.69966,3817.1,3817.0,4.1198]
[1754564722272,1.22061,3816.7,3816.6,2.9525]
[1754564722571,1.22061,3816.7,3815.0,40.86056775]
[1754564722572,0.52395,3816.4,3816.3,0.9097]
[1754564722769,2.49785,3816.4,3816.3,2.9525]
[1754564722971,2.49785,3816.4,3816.3,5.0295]
[1754564723767,3.33775,3816.4,3816.3,5.0295]
[1754564724171,2.49785,3816.4,3816.3,5.0295]
[1754564724779,2.49785,3816.4,3816.3,4.1198]
[1754564725079,2.49788,3816.2,3816.1,4.1198]
[1754564725377,2.49788,3816.2,3816.1,5.0295]
[1754564725777,5.70568,3816.2,3816.1,5.0295]
[1754564727277,6.54558,3816.2,3816.1,2.077]
[1754564727477,2.39114,3815.8,3815.7,5.0295]
[1754564727773,2.49799,3815.4,3815.3,8.2373]
[1754564727978,1.74139,3815.4,3815.3,8.2373]
[1754564728176,1.11399,3815.4,3815.3,8.2373]
[1754564728374,2.45689,3815.4,3815.3,5.0295]
[1754564728785,3.33789,3815.4,3815.3,2.0646]
[1754564729078,21.69889,3815.4,3815.3,0.8839]
[1754564729682,21.69889,3815.4,3815.3,4.1762]
[1754564729975,18.88509,3815.4,3815.3,5.0888]
[1754564730374,20.04229,3815.4,3815.3,5.0888]
[1754564730576,20.65089,3815.4,3815.3,5.0888]
[1754564730982,20.65899,3815.4,3815.3,5.0888]
[1754564731381,0.52416,3814.9,3814.8,5.1021]
[1754564733382,1.31027,3815.3,3814.8,8.3099]
[1754564733581,1.31027,3815.3,3814.8,5.2512]
[1754564733788,0.52416,3814.9,3814.8,5.2512]
[1754564734084,0.52416,3814.9,3814.8,8.3099]
[1754564735178,3.47656,3814.9,3814.8,8.3099]
[1754564735381,3.99796,3814.9,3814.8,8.3099]
[1754564735777,3.47656,3814.9,3814.8,3.2078]
[1754564735978,0.52427,3814.1,3813.9,0.9439033]
[1754564736278,0.52427,3814.1,3812.7,0.9126]
[1754564736279,0.52446,3812.8,3812.6,3.2078]
[1754564736479,0.52453,3812.3,3812.1,3.2078]
[1754564736883,3.29213,3812.3,3812.2,4.1895]
[1754564737180,0.52453,3812.2,3812.1,5.2512]
[1754564737377,0.52453,3812.3,3812.1,8.3099]
[1754564737583,1.85862,3813.0,3812.9,2.0434]
[1754564737880,18.88742,3813.0,3812.9,5.1021]
[1754564738279,0.52442,3813.0,3812.9,5.1021]
[1754564738482,0.5244,3813.2,3812.9,2.0434]
[1754564738686,3.73213,3813.7,3813.6,1.1874]
[1754564738889,3.73213,3813.7,3813.6,5.1021]
[1754564740307,0.5244,3813.2,3813.1,3.2078]
[1754564740590,0.52452,3812.3,3812.2,3.8315]
[1754564740883,0.08282,3812.3,3812.2,3.8315]
[1754564741079,0.52452,3812.3,3812.2,2.0434]
[1754564741281,0.52452,3812.3,3811.7,3.2078]
[1754564741282,1.08287,3812.0,3811.9,1.1874]
[1754564741591,4.52127,3812.0,3811.9,2.0434]
[1754564741783,4.52127,3812.0,3811.9,3.8315]
[1754564741984,0.52457,3812.0,3811.9,3.8315]
[1754564742482,0.52457,3812.0,3811.9,5.1021]
[1754564742795,0.52455,3812.1,3812.0,5.1021]
[1754564742984,22.09528,3812.6,3812.5,2.0434]
[1754564743185,0.52444,3813.0,3812.6,3.9147]
[1754564743379,0.52444,3813.0,3812.9,5.1021]
[1754564743686,18.88734,3813.6,3813.5,2.0434]
[1754564743883,20.22154,3813.6,3813.5,5.1021]
[1754564744193,0.52434,3813.6,3813.5,5.1021]
[1754564744790,0.52434,3813.7,3813.6,5.1021]
[1754564745086,0.52431,3813.9,3813.8,1.4515]
[1754564745278,0.52431,3813.9,3813.8,5.1021]
[1754564746482,1.08261,3813.9,3813.8,5.1021]
[1754564746684,4.52101,3813.9,3813.8,5.1021]
[1754564747379,2.51604,3813.6,3813.5,6.1267]
[1754564747589,4.52104,3813.6,3813.5,8.3099]
[1754564747886,4.52104,3813.6,3809.7,0.262]
[1754564747887,1.3003,3813.2,3813.1,0.8755]
[1754564748193,6.641,3813.2,3813.1,0.8755]
[1754564748684,0.52444,3812.9,3812.8,3.0587]
[1754564748883,0.52447,3812.8,3812.5,3.2078]
[1754564749083,0.52447,3812.8,3812.7,3.0587]
[1754564749682,0.5246,3811.7,3811.6,3.2078]
[1754564749884,0.5246,3811.7,3811.5,0.8755]
[1754564749885,1.2291,3811.6,3811.1,3.2078]
[1754564750083,0.52466,3811.3,3811.1,3.2078]
[1754564750286,1.7538,3811.0,3810.8,2.0]
[1754564750486,0.4084,3810.9,3810.8,1.01623]
[1754564750686,3.7325,3811.0,3809.4,18.366]
[1754564750687,0.52485,3809.9,3809.4,3.2078]
[1754564750885,0.52498,3809.0,3808.5,3.2078]
[1754564751084,0.52501,3808.8,3808.5,3.2078]
[1754564751377,4.52005,3809.6,3807.9,0.94539056]
[1754564751378,0.52507,3808.4,3808.0,3.2078]
[1754564751578,18.365,3808.9,3808.0,3.2078]
[1754564751579,0.52505,3808.5,3808.3,0.8755]
[1754564751779,0.52509,3808.2,3808.1,0.34947]
[1754564752181,3.2078,3809.0,3808.1,3.2078]
[1754564752383,0.52504,3808.6,3808.4,1.2706]
[1754564752586,0.52504,3808.6,3808.5,2.1832]
[1754564752785,0.52504,3808.6,3808.2,2.1832]
[1754564752987,3.2078,3809.0,3808.2,2.1832]
[1754564753183,3.2078,3809.0,3808.2,0.9126]
[1754564753388,3.2078,3809.5,3808.9,1.2706]
[1754564753684,0.52491,3809.5,3809.4,1.2706]
[1754564753886,0.52491,3809.5,3808.9,0.9126]
[1754564753887,0.52498,3809.0,3808.9,3.0587]
[1754564754081,0.52498,3809.0,3808.9,2.1461]
[1754564754282,0.5261,3809.7,3809.1,2.1461]
[1754564754283,3.2078,3809.7,3809.1,2.1461]
[1754564754583,0.69233598,3810.0,3809.0,3.0587]
[1754564754584,0.52484,3810.0,3809.0,3.0587]
[1754564754783,0.69233598,3810.8,3809.9,0.9126]
[1754564754983,0.69233598,3810.8,3808.8,18.411]
[1754564754984,0.52469,3811.1,3811.0,1.7881]
[1754564755295,3.50127,3811.9,3811.1,3.0587]
[1754564755296,2.88213598,3811.9,3811.1,3.0587]
[1754564755792,2.88213598,3811.9,3811.1,6.2665]
[1754564755993,0.52459,3811.8,3811.1,5.91568]
[1754564756195,0.52459,3811.8,3811.3,3.0587]
[1754564756387,0.52467,3811.2,3811.1,4.0833]
[1754564756584,1.2291,3811.1,3810.5,0.8755]
[1754564756786,2.1898,3810.6,3810.5,0.8755]
[1754564756983,0.52481,3810.3,3810.0,0.8755]
[1754564757193,0.52481,3810.3,3810.1,0.8755]
[1754564757194,2.1898,3810.2,3810.1,0.8755]
[1754564757393,0.52477,3810.5,3810.2,2.1461]
[1754564757590,0.5248,3810.3,3809.6,3.2078]
[1754564757790,0.52476,3810.6,3809.7,2.1832]
[1754564757991,4.1685,3810.4,3809.2,1.2706]
[1754564758197,0.52486,3809.9,3809.1,3.2078]
[1754564758501,0.52485,3810.0,3809.3,3.0587]
[1754564758687,0.52485,3810.0,3809.4,1.2706]
[1754564758891,4.1685,3810.4,3808.5,37.777]
[1754564758892,4.1685,3810.4,3809.6,2.1832]
[1754564759093,0.52482,3810.2,3809.7,0.8621]
[1754564759291,0.9424,3810.1,3809.6,0.8621]
[1754564759499,1.2038,3809.8,3808.8,0.8621]
[1754564759696,2.1462,3809.5,3808.8,0.8621]
[1754564759893,2.1462,3809.5,3808.9,1.1881]
[1754564760098,0.69228734,3809.9,3809.1,1.1881]
[1754564760401,2.1462,3809.3,3809.2,0.8621]
[1754564760605,2.1462,3809.3,3809.2,2.0502]
[1754564760795,0.9424,3809.6,3809.2,1.1881]
[1754564760997,0.52477,3810.5,3809.5,4.0699]
[1754564761195,5.10411014,3810.6,3809.8,1.1881]
[1754564761399,3.90031014,3810.6,3810.0,1.1881]
[1754564761600,3.2078,3810.6,3810.3,1.8244]
[1754564761896,3.2078,3810.6,3810.5,3.0125]
[1754564762599,0.69251014,3811.1,3810.8,0.52473]
[1754564762799,0.69263631,3811.5,3811.1,2.0502]
[1754564763006,0.52463,3811.6,3811.0,0.52469]
[1754564763198,0.5247,3811.0,3810.6,0.52475]
[1754564763400,0.52471,3811.0,3810.3,3.2078]
[1754564763602,0.52473,3810.8,3810.4,2.57498]
[1754564763801,0.52472,3810.9,3810.4,2.0502]
[1754564764001,0.52474,3810.7,3810.5,2.0502]
[1754564764204,2.67094,3810.7,3810.6,0.8621]
[1754564764702,2.1462,3810.6,3810.2,0.8621]
[1754564765004,2.671,3810.3,3810.2,0.8621]
[1754564765307,2.1462,3810.3,3810.2,0.8621]
[1754564765502,0.69408,3810.3,3810.2,2.1504]
[1754564765695,0.52484,3810.0,3809.9,3.2078]
[1754564765902,0.52487,3809.8,3809.2,3.2078]
[1754564766105,2.1462,3809.9,3809.6,0.52489]
[1754564766302,0.52487,3809.8,3809.7,0.9623]
[1754564766503,0.52487,3809.8,3809.3,0.52492]
[1754564766802,0.69408,3810.0,3809.5,0.9623]
[1754564767010,2.84028,3809.9,3809.2,3.2078]
[1754564767213,0.69408,3809.8,3809.6,1.1881]
[1754564767413,0.52487,3809.8,3809.7,2.0502]
[1754564767608,0.52487,3809.8,3809.7,3.0125]
[1754564767814,0.69408,3810.0,3809.8,1.8244]
[1754564768006,3.2078,3810.1,3809.6,0.52489]
[1754564768007,0.69408,3809.9,3809.6,0.52489]
[1754564768208,0.69408,3810.0,3809.6,0.52489]
[1754564768409,0.69408,3809.9,3809.2,3.2078]
[1754564768714,0.52486,3809.9,3809.7,3.0125]
[1754564769013,2.16135,3809.9,3809.6,0.8621]
[1754564769203,2.16135,3809.9,3808.8,1.3125]
[1754564769204,2.1462,3808.9,3807.9,0.94539056]
[1754564769402,1.2038,3808.1,3808.0,3.2078]
[1754564769609,0.52511,3808.0,3807.9,0.94539056]
[1754564769808,0.69408,3808.3,3808.0,3.0125]
[1754564770112,0.69408,3808.7,3808.3,0.8621]
[1754564770310,0.69408,3808.6,3808.5,6.2203]
[1754564770521,0.69408,3809.0,3808.9,3.53749]
[1754564770708,0.69408,3809.5,3808.9,5.3582]
[1754564770908,0.69408,3809.4,3809.3,0.52493]
[1754564771204,0.69408,3809.4,3809.3,1.71303]
[1754564771715,0.69408,3809.4,3809.3,2.67533]
[1754564772010,0.69408,3809.4,3809.3,6.74523]
[1754564772213,1.40337013,3810.3,3809.8,0.8621]
[1754564772515,0.69424522,3810.2,3810.1,0.8621]
[1754564772910,0.69424522,3810.2,3810.1,2.0502]
[1754564773111,0.69424522,3810.2,3810.1,3.0125]
[1754564773608,0.69424522,3810.2,3810.1,2.1504]
[1754564773811,0.69424522,3810.2,3810.1,3.0125]
[1754564775716,0.69424522,3810.7,3810.6,3.53726]
[1754564780122,1.40337013,3811.3,3811.1,0.52468]
[1754564780319,1.40337013,3811.4,3811.2,2.1504]
[1754564780524,1.40337013,3811.4,3811.3,2.0502]
[1754564781020,1.40337013,3811.4,3811.3,3.0125]
[1754564781222,1.92801013,3811.5,3811.3,3.0125]
[1754564781417,1.92801013,3811.5,3811.4,0.8621]
[1754564781418,2.60717013,3811.5,3811.4,0.8621]
[1754564781822,1.2038,3811.5,3811.4,0.8621]
[1754564782018,2.1462,3811.5,3811.4,0.8621]
[1754564782215,0.52465,3811.4,3811.1,0.52468]
[1754564782419,0.9424,3811.2,3811.0,1.38679]
[1754564782620,2.1462,3811.1,3810.9,3.73251]
[1754564782820,0.52475,3810.7,3810.1,3.2078]
[1754564783026,2.1462,3810.4,3810.3,0.52479]
[1754564783222,2.1462,3810.4,3810.2,1.3869]
[1754564783525,2.1462,3810.3,3810.2,1.3869]
[1754564785628,2.1462,3810.3,3810.2,0.8621]
[1754564786931,3.2078,3810.8,3809.8,1.31217]
[1754564787230,3.2078,3810.8,3810.4,0.8621]
[1754564787231,2.67098,3810.5,3810.4,0.8621]
[1754564788620,2.1462,3810.3,3810.2,1.3869]
[1754564788818,3.2078,3810.4,3809.9,1.1881]
[1754564789023,0.52493,3809.3,3809.2,3.2078]
[1754564789225,2.20967,3809.8,3809.2,3.0678]
[1754564789226,0.52488,3809.8,3809.2,3.0678]
[1754564789421,1.42239,3809.7,3809.5,3.0678]
[1754564789625,2.67779,3809.7,3809.6,2.1298]
[1754564789831,2.67779,3809.7,3809.6,0.8758]
[1754564790031,2.67783,3809.4,3809.3,0.8758]
[1754564790619,1.4224,3809.6,3809.4,1.8138]
[1754564790830,2.67786,3809.2,3809.1,0.8758]
[1754564791623,0.52493,3809.4,3809.2,0.52495]
[1754564791826,0.52493,3809.4,3809.3,3.0678]
[1754564792025,2.12224176,3809.4,3809.3,3.0678]
[1754564792223,1.42243,3809.4,3809.3,2.1298]
[1754564792430,2.67783,3809.4,3809.3,0.8758]
[1754564792727,0.69981176,3809.5,3809.4,2.1298]
[1754564792932,0.69981176,3809.5,3809.3,0.52493]
[1754564792933,3.2078,3809.6,3809.5,3.59271]
[1754564793128,3.90761176,3809.6,3809.5,3.59271]
[1754564793334,3.2078,3809.6,3809.5,3.59271]
[1754564794431,3.2078,3809.6,3808.9,3.0678]
[1754564794432,0.52494,3809.3,3808.9,3.0678]
[1754564794633,0.52494,3809.3,3809.0,0.8758]
[1754564794834,2.67781,3809.5,3809.3,2.1298]
[1754564795134,0.78031,3809.5,3809.4,2.1298]
[1754564795529,3.7327,3809.6,3809.5,0.52491]
[1754564795728,3.2078,3809.6,3809.5,3.59271]
[1754564796129,0.52484,3810.0,3809.8,0.52485]
[1754564796330,0.52487,3809.8,3809.7,3.59268]
[1754564796636,1.42237,3809.8,3809.7,3.0678]
[1754564797031,1.42237,3809.8,3809.7,2.1298]
[1754564797032,1.71727,3809.8,3809.7,2.1298]
[1754564797228,0.81982,3809.5,3809.4,0.8758]
[1754564797431,0.52496,3809.1,3809.0,0.52497]
[1754564797632,0.81986,3809.2,3809.0,1.77897]
[1754564797834,0.81986,3809.2,3809.1,2.1298]
[1754564798133,0.81986,3809.2,3809.1,0.8758]
[1754564798333,1.71736,3809.2,3809.1,0.8758]
[1754564799332,1.71736,3809.2,3809.1,2.1298]
[1754564800431,1.71736,3809.2,3809.1,0.8758]
[1754564800636,1.7174,3808.8,3808.7,2.1298]
[1754564801835,1.71743,3808.6,3808.5,2.1298]
[1754564802639,1.71743,3808.6,3808.5,3.0678]
[1754564802640,0.8975,3808.6,3808.5,3.0678]
[1754564802939,0.52497,3809.1,3809.0,3.0678]
[1754564803344,1.42245,3809.2,3809.0,3.59276]
[1754564803542,1.42245,3809.2,3809.1,2.1298]
[1754564803743,0.8975,3809.2,3809.1,3.0678]
[1754564804035,0.8975,3809.2,3809.1,2.192]
[1754564804240,3.2078,3809.4,3809.3,3.0678]
[1754564804942,4.4002,3809.4,3809.3,2.1298]
[1754564805238,1.71739,3809.0,3808.9,0.8758]
[1754564805635,1.71739,3809.0,3808.9,2.1298]
[1754564805837,4.63023,3809.4,3809.3,3.0678]
[1754564806336,4.63023,3809.4,3809.3,2.1298]
[1754564806537,4.91053,3809.4,3809.3,0.8758]
[1754564807238,4.91053,3809.4,3809.3,2.1298]
[1754564807438,3.73273,3809.4,3809.3,2.1298]
[1754564807640,4.3856,3809.4,3809.3,2.1298]
[1754564808833,4.3856,3809.4,3809.3,3.0678]
[1754564808834,3.2078,3809.4,3809.3,3.0678]
[1754564809039,0.52488,3809.7,3809.4,3.59272]
[1754564809240,0.52494,3809.3,3809.1,0.938]
[1754564809439,1.70274,3809.3,3809.2,2.1298]
[1754564809839,1.70274,3809.3,3809.2,3.0678]
[1754564810141,1.42244,3809.3,3809.2,3.0678]
[1754564810537,1.70274,3809.3,3809.2,2.1298]
[1754564810842,1.42244,3809.3,3809.2,3.0678]
[1754564812446,1.70274,3809.3,3809.2,2.1298]
[1754564812946,1.70274,3809.3,3809.2,3.0678]
[1754564812947,1.42244,3809.3,3809.2,3.0678]
[1754564813147,0.52493,3809.4,3809.3,3.0678]
[1754564813338,0.5249,3809.6,3809.5,3.0678]
[1754564813543,0.5249,3809.6,3809.5,5.0269]
[1754564814148,0.52489,3809.7,3809.5,2.48399]
[1754564814448,0.52487,3809.8,3809.7,5.0269]
[1754564814747,1.22452352,3809.8,3809.7,5.0269]
[1754564815144,2.72162352,3809.8,3809.7,5.0269]
[1754564815943,3.73266,3809.9,3809.7,5.0269]
[1754564816144,0.70001952,3810.2,3810.1,0.6219]
[1754564816349,18.473,3810.2,3810.1,5.0269]
[1754564816650,20.67011952,3810.2,3810.1,5.0269]
[1754564817448,2.19711952,3810.2,3810.1,5.0269]
[1754564817649,20.66311952,3810.2,3810.1,5.0269]
[1754564817845,2.19711952,3810.2,3810.1,5.0269]
[1754564818043,3.2078,3810.3,3810.2,5.55171]
[1754564818243,21.6718,3810.3,3810.2,5.55171]
[1754564818550,0.70050171,3810.3,3810.2,5.55171]
[1754564818750,4.7049,3810.7,3810.6,4.0889]
[1754564819051,6.41570171,3810.7,3810.6,5.0269]
[1754564819252,5.96730171,3810.7,3810.6,5.0269]
[1754564819648,5.2668,3810.7,3810.6,5.0269]
[1754564820447,3.29404,3810.0,3809.9,1.4549]
[1754564820754,2.61507,3810.5,3810.4,5.0027]
[1754564820953,3.99453203,3810.5,3810.4,4.0649]
[1754564821155,3.29402,3810.1,3810.0,4.0649]
[1754564821449,2.7692,3810.1,3810.0,4.0649]
[1754564821650,1.53,3810.1,3810.0,5.0027]
[1754564821855,4.7378,3810.3,3810.2,2.0055]
[1754564822044,5.7159,3810.3,3810.2,5.0027]
[1754564822245,5.977,3810.3,3810.2,0.8559]
[1754564822445,6.5042,3810.3,3810.2,0.8559]
[1754564822754,1.53,3809.6,3809.5,5.0027]
[1754564823154,2.05489,3809.6,3809.5,5.0027]
[1754564823654,0.52489,3809.6,3809.5,5.0027]
[1754564823857,1.31194,3810.5,3809.5,3.2078]
[1754564824051,0.52487,3809.8,3809.6,2.9972]
[1754564824251,0.52487,3809.8,3809.7,2.9972]
[1754564824449,1.66907,3809.8,3809.7,2.9972]
[1754564824647,2.60507,3809.8,3809.7,2.9972]
[1754564825249,2.60507,3809.8,3809.7,0.8559]
[1754564825455,2.60507,3809.8,3809.1,3.2078]
[1754564825456,0.52495,3809.2,3809.1,3.2078]
[1754564825761,2.9925,3809.4,3809.1,3.2078]
[1754564825955,0.525,3808.8,3808.7,3.2078]
[1754564826563,3.5175,3808.8,3808.7,3.2078]
[1754564826953,0.525,3808.8,3808.7,3.2078]
[1754564827355,0.525,3808.8,3808.7,5.3491]
[1754564827560,0.525,3808.8,3808.7,6.205]
[1754564828859,0.525,3808.9,3808.8,2.9972]
[1754564829554,1.6692,3808.9,3808.8,2.9972]
[1754564829754,0.525,3808.9,3808.8,0.9378]
[1754564829955,0.525,3808.9,3808.8,2.9972]
[1754564830764,0.525,3808.9,3808.8,5.0027]
[1754564831161,1.0853,3808.9,3808.7,3.2078]
[1754564831358,0.525,3808.9,3808.8,3.209]
[1754564831866,0.525,3808.9,3808.8,5.0027]
[1754564832064,1.99745,3809.9,3809.8,4.1468]
[1754564832260,1.99745,3809.9,3809.8,5.0027]
[1754564833164,0.52485,3809.9,3809.8,2.9972]
[1754564833760,0.52484,3810.0,3809.9,2.9972]
[1754564834061,2.37314,3810.0,3809.9,0.9378]
[1754564834255,0.52495,3809.2,3809.1,4.4113]
[1754564834462,3.51745,3809.2,3809.1,5.3491]
[1754564835061,1.4373,3808.8,3808.7,2.9972]
[1754564835267,3.5175,3808.8,3808.7,2.1413]
[1754564835666,2.5815,3808.8,3808.7,2.1413]
[1754564835867,0.52509,3808.2,3808.1,4.4113]
[1754564836064,0.52509,3808.2,3808.1,6.205]
[1754564836464,2.9925,3808.7,3808.1,3.2078]
[1754564836665,4.1201,3809.0,3808.2,1.2035]
[1754564836867,0.52506,3808.5,3808.4,2.9972]
[1754564837075,0.52504,3808.6,3808.4,2.9972]
[1754564837269,0.52506,3808.5,3808.1,3.2078]
[1754564837469,0.9123,3809.0,3808.1,3.2078]
[1754564837666,0.52503,3808.7,3808.5,3.2078]
[1754564837870,0.52503,3808.7,3808.6,2.9972]
[1754564840679,0.52501,3808.8,3808.6,0.8559]
[1754564840881,0.52501,3808.8,3808.7,2.9972]
[1754564842679,0.52497,3809.1,3808.8,2.1413]
[1754564842879,0.9123,3809.4,3808.9,3.2078]
[1754564843183,0.52492,3809.4,3808.9,3.2078]
[1754564843786,0.52492,3809.4,3809.2,0.8559]
[1754564843985,0.9123,3809.6,3809.4,2.9972]
[1754564844178,1.1442,3810.0,3809.5,2.9972]
[1754564844485,0.9123,3809.9,3809.8,2.9972]
[1754564844886,3.2078,3810.1,3809.8,2.9972]
[1754564845183,4.1201,3810.1,3810.0,1.7937]
[1754564845385,4.1201,3810.1,3810.0,2.9972]
[1754564845986,0.9123,3810.1,3810.0,2.9972]
[1754564846585,2.0565,3810.1,3810.0,2.9972]
[1754564846782,0.9123,3810.1,3810.0,2.9972]
[1754564846988,0.936,3810.3,3810.1,1.38072]
[1754564847179,2.0802,3810.3,3810.2,2.1413]
[1754564847579,3.2078,3810.6,3810.2,2.1413]
[1754564847784,0.9123,3810.6,3810.5,2.66607]
[1754564847982,2.9925,3810.6,3810.5,2.66607]
[1754564848386,4.9285,3810.6,3810.5,4.67157]
[1754564848783,4.0162,3810.9,3810.8,4.1468]